fUSD/lending_fUSD_20260227
["ID","MTS","AMOUNT","RATE_DAILY","PERIOD"]
[406813783,1772204988644,810.84,6.823e-05,2]
[406813784,1772204988851,810.84,7.007e-05,2]
[406813785,1772204989109,810.84,7.19e-05,2]
[406813786,1772204989314,810.84,7.373e-05,2]
[406813787,1772204989553,810.84,7.557e-05,2]
[406813788,1772204989739,810.84,7.74e-05,2]
[406813815,1772205032224,-1200.0,8.999e-05,2]
[406813816,1772205032234,-300.0,8.999e-05,2]
[406813817,1772205032243,-869.22227224,9e-05,2]
[406813818,1772205032254,-457.76704283,9e-05,2]
[406813819,1772205032265,-1848.75756851,9e-05,2]
[406813820,1772205032277,-1824.25311642,9e-05,2]
[406813821,1772205032286,-412.02618185,9e-05,2]
[406813822,1772205032298,-651.34449593,9e-05,2]
[406813823,1772205032307,-166.66,9.273e-05,2]
[406813824,1772205032317,-725.56604473,9.402e-05,2]
[406813825,1772205032355,-793.29285291,9.402e-05,2]
[406813826,1772205032378,-469.17841978,9.402e-05,2]
[406813827,1772205032424,-12491.65392658,9.402e-05,2]
[406813828,1772205032434,-1063.37067776,9.45e-05,2]
[406813829,1772205032443,-10048.75,9.461e-05,2]
[406813830,1772205032452,-236.358749,9.526e-05,2]
[406813831,1772205032462,-166.66,9.579e-05,2]
[406813832,1772205032475,-213.57989,9.784e-05,2]
[406813833,1772205032485,-166.66,9.885e-05,2]
[406813834,1772205032494,-300.0,9.885e-05,14]
[406813835,1772205032504,-150.0,9.899e-05,2]
[406813837,1772205032514,-420.0,9.899e-05,2]
[406813839,1772205032523,-1680.0,9.899e-05,2]
[406813841,1772205032533,-17186.08394601,9.9e-05,2]
[406813844,1772205032544,-2249.87872731,9.9e-05,2]
[406813860,1772205038353,-305.74126914,9.899e-05,2]
[406813861,1772205038364,-1980564.03732668,9.9e-05,2]
[406813862,1772205038374,-1063.37067776,9.9e-05,2]
[406813863,1772205038383,-250.0,9.9e-05,2]
[406813864,1772205038393,-341.15871215,9.926e-05,2]
[406813865,1772205038402,-170.9497447,9.926e-05,2]
[406813866,1772205038412,-585.28187735,9.926e-05,2]
[406813867,1772205038421,-106209.35212621,9.927e-05,2]
[406813868,1772205038481,-308.5174995,9.927e-05,2]
[406813869,1772205038492,-903.93718342,9.927e-05,2]
[406813870,1772205038503,-35080.45007758,9.927e-05,2]
[406813871,1772205038539,-1250.0,9.927e-05,2]
[406813872,1772205038550,-943.95867498,9.927e-05,2]
[406813875,1772205040460,-732.18335078,9.927e-05,2]
[406813876,1772205040471,-1558.23175269,9.927e-05,2]
[406813877,1772205040535,-1283.58306067,9.927e-05,2]
[406813878,1772205040547,-908.61211672,9.927e-05,2]
[406813879,1772205040558,-6633.13592568,9.927e-05,2]
[406813880,1772205040569,-1902.07,9.927e-05,2]
[406813881,1772205040580,-4154.08136312,9.927e-05,2]
[406813882,1772205040593,-799373.25006865,9.927e-05,2]
[406813883,1772205040602,-261.729359,9.972e-05,2]
[406813884,1772205040612,-1967.31764889,0.0001,2]
[406813885,1772205040621,-999.99,0.0001,2]
[406813886,1772205040631,-9999.99,0.0001,2]
[406813887,1772205040640,-150.99,0.0001,2]
[406813888,1772205040649,-4312.84,0.0001,2]
[406813889,1772205040659,-348.44,0.0001,2]
[406813890,1772205040668,-9999.99,0.0001,2]
[406813891,1772205040677,-299.99,0.0001,2]
[406813892,1772205040686,-1053.03002661,0.0001,2]
[406813893,1772205040697,-368.42176142,0.0001,2]
[406813894,1772205040709,-337.0,0.0001,2]
[406813895,1772205040718,-337.0,0.0001,2]
[406813896,1772205040727,-338.83518363,0.0001,2]
[406813897,1772205040736,-4000.0,0.00010027,2]
[406813898,1772205040749,-9999.99,0.00010027,2]
[406813899,1772205040758,-150.99,0.00010027,2]
[406813900,1772205040767,-9999.99,0.00010027,2]
[406813901,1772205040779,-1955.0,0.00010071,2]
[406813902,1772205040788,-420.0,0.00010071,2]
[406813903,1772205040797,-249.0,0.00010091,2]
[406813904,1772205040807,-166.66,0.00010191,2]
[406813905,1772205040816,-4000.0,0.00010278,2]
[406813906,1772205040826,-500.0,0.000103,2]
[406813907,1772205040835,-980.56702483,0.000103,2]
[406813908,1772205040845,-500.0,0.000103,2]
[406813909,1772205040855,-500.0,0.000103,2]
[406813910,1772205040864,-500.0,0.000103,2]
[406813911,1772205040874,-600.0,0.000103,2]
[406813912,1772205040883,-500.0,0.000103,2]
[406813913,1772205040892,-744.54912065,0.000103,2]
[406813914,1772205040902,-500.0,0.000103,2]
[406813915,1772205040912,-500.0,0.000103,2]
[406813916,1772205040921,-500.0,0.000103,2]
[406813917,1772205040931,-500.0,0.000103,2]
[406813918,1772205040940,-500.0,0.000103,2]
[406813919,1772205040949,-500.0,0.000103,2]
[406813920,1772205040959,-500.0,0.000103,2]
[406813921,1772205040968,-500.0,0.000103,2]
[406813922,1772205040977,-699.99,0.000103,2]
[406813923,1772205040987,-611.11529278,0.000103,2]
[406813924,1772205040996,-500.0,0.000103,2]
[406813925,1772205041006,-500.0,0.000103,2]
[406813926,1772205041015,-500.0,0.000103,2]
[406813927,1772205041025,-500.0,0.000103,2]
[406813928,1772205041034,-500.0,0.000103,2]
[406813929,1772205041043,-500.0,0.000103,2]
[406813930,1772205041052,-500.0,0.000103,2]
[406813931,1772205041061,-500.0,0.000103,2]
[406813932,1772205041071,-500.0,0.000103,2]
[406813933,1772205041080,-500.0,0.000103,2]
[406813934,1772205041089,-500.0,0.000103,2]
[406813935,1772205041100,-500.0,0.000103,2]
[406813936,1772205041111,-500.0,0.000103,2]
[406813937,1772205041121,-500.0,0.000103,2]
[406813938,1772205041132,-500.0,0.000103,2]
[406813939,1772205041142,-500.0,0.000103,2]
[406813940,1772205041151,-500.0,0.000103,2]
[406813941,1772205041160,-500.0,0.000103,2]
[406813942,1772205041170,-636.56274826,0.000103,2]
[406813943,1772205041179,-500.0,0.000103,2]
[406813944,1772205041188,-500.0,0.000103,2]
[406813945,1772205041198,-904.64746306,0.000103,2]
[406813946,1772205041208,-500.0,0.000103,2]
[406813947,1772205041217,-977.54963407,0.000103,2]
[406813948,1772205041227,-700.0,0.000103,2]
[406813949,1772205041237,-700.0,0.000103,2]
[406813950,1772205041247,-700.0,0.000103,2]
[406813951,1772205041256,-700.0,0.000103,2]
[406813952,1772205041266,-700.0,0.000103,2]
[406813953,1772205041276,-700.0,0.000103,2]
[406813954,1772205041285,-700.0,0.000103,2]
[406813955,1772205041295,-700.0,0.000103,2]
[406813956,1772205041304,-700.0,0.000103,2]
[406813957,1772205041314,-700.0,0.000103,2]
[406813958,1772205041324,-700.0,0.000103,2]
[406813959,1772205041333,-700.0,0.000103,2]
[406813960,1772205041343,-700.0,0.000103,2]
[406813961,1772205041353,-856.34100069,0.000103,2]
[406813962,1772205041363,-869.50668288,0.000103,2]
[406813963,1772205041373,-500.0,0.000103,2]
[406813964,1772205041383,-500.0,0.000103,2]
[406813965,1772205041393,-500.0,0.000103,2]
[406813966,1772205041403,-795.55896205,0.000103,2]
[406813967,1772205041412,-983.0,0.000103,2]
[406813968,1772205041422,-500.0,0.000103,2]
[406813969,1772205041431,-500.0,0.000103,2]
[406813970,1772205041441,-500.0,0.000103,2]
[406813971,1772205041451,-500.0,0.000103,2]
[406813972,1772205041461,-500.0,0.000103,2]
[406813973,1772205041470,-500.0,0.000103,2]
[406813974,1772205041480,-500.0,0.000103,2]
[406813975,1772205041491,-500.0,0.000103,2]
[406813976,1772205041501,-780.9609027,0.000103,2]
[406813977,1772205041511,-166.66,0.00010497,2]
[406813978,1772205041521,-185.4829359,0.00010504,2]
[406813979,1772205041530,-4000.0,0.00010529,2]
[406813980,1772205041540,-814.997,0.00010529,2]
[406813981,1772205041549,-199.848,0.00010529,2]
[406813982,1772205041558,-500.0,0.00010574,2]
[406813983,1772205041568,-28299.5965,0.00010759,2]
[406813984,1772205041577,-2500.0,0.00010759,2]
[406813985,1772205041586,-4000.0,0.00010779,2]
[406813986,1772205041595,-1710.24711264,0.00010789,2]
[406813987,1772205041605,-166.66,0.00010803,2]
[406813988,1772205041614,-5213.0,0.00010822,2]
[406813989,1772205041626,-500.0,0.00010829,2]
[406813990,1772205041636,-500.0,0.00010829,2]
[406813991,1772205041645,-3146.44652099,0.00010842,2]
[406813992,1772205041654,-500.0,0.00010848,2]
[406813993,1772205041664,-12301.82215781,0.00010849,2]
[406813994,1772205041673,-255.0,0.00010889,2]
[406813995,1772205041683,-587.0,0.00010889,2]
[406813996,1772205041693,-2351.0,0.00010889,2]
[406813997,1772205041703,-14432.92,0.00010959,2]
[406813998,1772205041715,-166.66,0.00010959,2]
[406813999,1772205041724,-150.0,0.00010959,2]
[406814000,1772205041734,-9460.19512766,0.00011,2]
[406814001,1772205041745,-4000.0,0.0001103,2]
[406814002,1772205041754,-166.66,0.00011068,2]
[406814003,1772205041765,-151.0,0.00011092,2]
[406814004,1772205041774,-151.0,0.00011092,2]
[406814005,1772205041785,-151.0,0.00011092,2]
[406814006,1772205041794,-151.0,0.00011092,2]
[406814007,1772205041803,-151.0,0.00011092,2]
[406814008,1772205041813,-151.0,0.00011092,2]
[406814009,1772205041822,-151.0,0.00011092,2]
[406814010,1772205041831,-151.0,0.00011092,2]
[406814011,1772205041840,-151.0,0.00011092,2]
[406814012,1772205041849,-151.0,0.00011092,2]
[406814013,1772205041859,-151.0,0.00011092,2]
[406814014,1772205041868,-151.0,0.00011092,2]
[406814015,1772205041877,-176.95308782,0.00011092,2]
[406814016,1772205041887,-16822.52954859,0.00011099,2]
[406814017,1772205041905,-16822.52954853,0.00011099,2]
[406814018,1772205041915,-39740.82213892,0.00011099,2]
[406814019,1772205041925,-500.0,0.00011122,2]
[406814020,1772205041934,-1512.33,0.00011129,2]
[406814021,1772205041944,-166.66,0.00011178,2]
[406814022,1772205041954,-166.66,0.00011288,2]
[406814023,1772205041970,-1000.0,0.00011377,2]
[406814024,1772205041979,-1000.0,0.00011377,2]
[406814025,1772205041988,-500.0,0.00011396,2]
[406814026,1772205041998,-166.66,0.00011397,2]
[406814027,1772205042007,-295.448437,0.00011431,2]
[406814028,1772205042016,-39740.82213888,0.00011464,2]
[406814029,1772205042026,-166.66,0.00011507,2]
[406814030,1772205042035,-168.595389,0.00011537,2]
[406814031,1772205042045,-16822.52954853,0.000116,2]
[406814032,1772205042054,-500.0,0.0001167,2]
[406814033,1772205042063,-1235.6,0.0001175,2]
[406814034,1772205042073,-306.73,0.00011767,2]
[406814035,1772205042082,-250.0,0.00011891,2]
[406814036,1772205042092,-1500.0,0.00011924,2]
[406814037,1772205042103,-1320.22794059,0.00011924,2]
[406814038,1772205042112,-500.0,0.00011944,2]
[406814039,1772205042122,-433.0,0.00011978,2]
[406814040,1772205042132,-3292.0,0.00011978,2]
[406814041,1772205042141,-823.0,0.00011978,2]
[406814042,1772205042151,-303.34071404,0.00012218,2]
[406814043,1772205042161,-39740.82213888,0.00012268,2]
[406814044,1772205042170,-1000.0,0.00012373,2]
[406814045,1772205042180,-2000.0,0.00012472,2]
[406814046,1772205042190,-16822.52954853,0.000125,2]
[406814047,1772205042200,-888.46058708,0.0001289,2]
[406814048,1772205042210,-500.0,0.0001289,2]
[406814049,1772205042220,-500.0,0.0001289,2]
[406814050,1772205042229,-500.0,0.0001289,2]
[406814051,1772205042239,-500.0,0.0001289,2]
[406814052,1772205042248,-500.0,0.0001289,2]
[406814053,1772205042258,-500.0,0.0001289,2]
[406814054,1772205042268,-213.76906554,0.0001289,2]
[406814055,1772205042277,-869.88788903,0.0001289,2]
[406814056,1772205042287,-500.0,0.0001289,2]
[406814057,1772205042297,-500.0,0.0001289,2]
[406814058,1772205042307,-563.07260655,0.0001289,2]
[406814059,1772205042316,-500.0,0.0001289,2]
[406814060,1772205042326,-500.0,0.0001289,2]
[406814061,1772205042336,-537.0,0.0001289,2]
[406814062,1772205042345,-500.0,0.0001289,2]
[406814063,1772205042355,-500.0,0.0001289,2]
[406814064,1772205042364,-500.0,0.0001289,2]
[406814065,1772205042378,-500.0,0.0001289,2]
[406814066,1772205042388,-500.0,0.0001289,2]
[406814067,1772205042397,-500.0,0.0001289,2]
[406814068,1772205042407,-500.0,0.0001289,2]
[406814069,1772205042416,-851.56555211,0.0001289,2]
[406814070,1772205042426,-500.0,0.0001289,2]
[406814071,1772205042436,-504.04222443,0.0001289,2]
[406814072,1772205042446,-500.0,0.0001289,2]
[406814073,1772205042456,-500.0,0.0001289,2]
[406814074,1772205042467,-500.0,0.0001289,2]
[406814075,1772205042477,-500.0,0.0001289,2]
[406814076,1772205042488,-500.0,0.0001289,2]
[406814077,1772205042498,-500.0,0.0001289,2]
[406814078,1772205042508,-500.0,0.0001289,2]
[406814079,1772205042517,-500.0,0.0001289,2]
[406814080,1772205042527,-500.0,0.0001289,2]
[406814081,1772205042537,-500.0,0.0001289,2]
[406814082,1772205042547,-500.0,0.0001289,2]
[406814083,1772205042556,-500.0,0.0001289,2]
[406814084,1772205042565,-500.0,0.0001289,2]
[406814085,1772205042575,-500.0,0.0001289,2]
[406814086,1772205042585,-500.0,0.0001289,2]
[406814087,1772205042594,-500.0,0.0001289,2]
[406814088,1772205042604,-500.0,0.0001289,2]
[406814089,1772205042614,-500.0,0.0001289,2]
[406814090,1772205042625,-500.0,0.0001289,2]
[406814091,1772205042635,-500.0,0.0001289,2]
[406814092,1772205042645,-500.0,0.0001289,2]
[406814093,1772205042654,-500.0,0.0001289,2]
[406814094,1772205042667,-500.0,0.0001289,2]
[406814095,1772205042677,-500.0,0.0001289,2]
[406814096,1772205042686,-500.0,0.0001289,2]
[406814097,1772205042698,-700.0,0.0001289,2]
[406814098,1772205042710,-500.0,0.0001289,2]
[406814099,1772205042719,-500.0,0.0001289,2]
[406814100,1772205042728,-500.0,0.0001289,2]
[406814101,1772205042739,-700.0,0.0001289,2]
[406814102,1772205042748,-500.0,0.0001289,2]
[406814103,1772205042758,-700.0,0.0001289,2]
[406814104,1772205042767,-500.0,0.0001289,2]
[406814105,1772205042778,-500.0,0.0001289,2]
[406814106,1772205042787,-700.0,0.0001289,2]
[406814107,1772205042796,-500.0,0.0001289,2]
[406814108,1772205042805,-700.0,0.0001289,2]
[406814109,1772205042814,-700.0,0.0001289,2]
[406814110,1772205042824,-700.0,0.0001289,2]
[406814111,1772205042833,-700.0,0.0001289,2]
[406814112,1772205042843,-700.0,0.0001289,2]
[406814113,1772205042852,-700.0,0.0001289,2]
[406814114,1772205042862,-700.0,0.0001289,2]
[406814115,1772205042874,-700.0,0.0001289,2]
[406814116,1772205042883,-700.0,0.0001289,2]
[406814117,1772205042893,-700.0,0.0001289,2]
[406814118,1772205042903,-700.0,0.0001289,2]
[406814119,1772205042913,-500.0,0.0001289,2]
[406814120,1772205042923,-500.0,0.0001289,2]
[406814121,1772205042932,-500.0,0.0001289,2]
[406814122,1772205042944,-500.0,0.0001289,2]
[406814123,1772205042953,-500.0,0.0001289,2]
[406814126,1772205043165,-500.0,0.0001289,2]
[406814127,1772205043175,-500.0,0.0001289,2]
[406814128,1772205043185,-500.0,0.0001289,2]
[406814129,1772205043195,-500.0,0.0001289,2]
[406814130,1772205043204,-500.0,0.0001289,2]
[406814131,1772205043213,-500.0,0.0001289,2]
[406814132,1772205043223,-500.0,0.0001289,2]
[406814133,1772205043232,-500.0,0.0001289,2]
[406814135,1772205043242,-500.0,0.0001289,2]
[406814137,1772205043251,-500.0,0.0001289,2]
[406814139,1772205043261,-500.0,0.0001289,2]
[406814140,1772205043270,-500.0,0.0001289,2]
[406814141,1772205043279,-500.0,0.0001289,2]
[406814142,1772205043289,-500.0,0.0001289,2]
[406814143,1772205043298,-500.0,0.0001289,2]
[406814144,1772205043308,-500.0,0.0001289,2]
[406814146,1772205043317,-1649.88961964,0.00013,15]
[406814148,1772205043327,-2000.0,0.0001302,2]
[406814150,1772205043336,-5368.66478509,0.0001305,2]
[406814152,1772205043346,-39740.82213888,0.00013073,2]
[406814153,1772205043355,-1152.0,0.00013175,2]
[406814154,1772205043370,-4609.0,0.00013175,2]
[406814155,1772205043382,-736.0,0.00013176,2]
[406814156,1772205043392,-16822.52954853,0.000134,2]
[406814157,1772205043401,-1000.0,0.000135,2]
[406814158,1772205043411,-28931.99987184,0.0001358,2]
[406814159,1772205043421,-153.78758465,0.00013598,2]
[406814160,1772205043431,-500.0,0.00013698,2]
[406814161,1772205043441,-500.0,0.00013698,2]
[406814162,1772205043451,-500.0,0.00013698,2]
[406814163,1772205043460,-500.0,0.00013698,2]
[406814164,1772205043469,-500.0,0.00013698,2]
[406814165,1772205043479,-500.0,0.00013698,2]
[406814166,1772205043489,-500.0,0.00013698,2]
[406814167,1772205043498,-500.0,0.00013698,2]
[406814168,1772205043507,-500.0,0.00013698,2]
[406814169,1772205043516,-500.0,0.00013698,2]
[406814170,1772205043526,-500.0,0.00013698,2]
[406814171,1772205043535,-500.0,0.00013698,2]
[406814172,1772205043544,-500.0,0.00013698,2]
[406814173,1772205043553,-500.0,0.00013698,2]
[406814174,1772205043562,-500.0,0.00013698,2]
[406814175,1772205043571,-500.0,0.00013698,2]
[406814176,1772205043580,-500.0,0.00013698,2]
[406814177,1772205043589,-500.0,0.00013698,2]
[406814178,1772205043598,-500.0,0.00013698,2]
[406814179,1772205043607,-500.0,0.00013698,2]
[406814180,1772205043617,-500.0,0.00013698,2]
[406814181,1772205043629,-500.0,0.00013698,2]
[406814182,1772205043638,-500.0,0.00013698,2]
[406814183,1772205043648,-500.0,0.00013698,2]
[406814184,1772205043658,-500.0,0.00013698,2]
[406814185,1772205043667,-500.0,0.00013698,2]
[406814186,1772205043676,-500.0,0.00013698,2]
[406814187,1772205043686,-500.0,0.00013698,2]
[406814188,1772205043696,-500.0,0.00013698,2]
[406814189,1772205043708,-500.0,0.00013698,2]
[406814190,1772205043717,-500.0,0.00013698,2]
[406814191,1772205043727,-500.0,0.00013698,2]
[406814192,1772205043736,-500.0,0.00013698,2]
[406814193,1772205043747,-500.0,0.00013698,2]
[406814194,1772205043757,-500.0,0.00013698,2]
[406814195,1772205043766,-500.0,0.00013698,2]
[406814196,1772205043776,-500.0,0.00013698,2]
[406814197,1772205043787,-500.0,0.00013698,2]
[406814198,1772205043797,-500.0,0.00013698,2]
[406814199,1772205043806,-500.0,0.00013698,2]
[406814200,1772205043815,-500.0,0.00013698,2]
[406814201,1772205043824,-500.0,0.00013698,2]
[406814202,1772205043833,-500.0,0.00013698,2]
[406814203,1772205043842,-500.0,0.00013698,2]
[406814204,1772205043852,-500.0,0.00013698,2]
[406814205,1772205043861,-500.0,0.00013698,2]
[406814206,1772205043872,-500.0,0.00013698,2]
[406814207,1772205043881,-500.0,0.00013698,2]
[406814208,1772205043890,-500.0,0.00013698,2]
[406814209,1772205043899,-500.0,0.00013698,2]
[406814210,1772205043908,-500.0,0.00013698,2]
[406814211,1772205043917,-500.0,0.00013698,2]
[406814212,1772205043926,-500.0,0.00013698,2]
[406814213,1772205043935,-500.0,0.00013698,2]
[406814214,1772205043944,-500.0,0.00013698,2]
[406814215,1772205043954,-500.0,0.00013698,2]
[406814216,1772205043963,-500.0,0.00013698,2]
[406814217,1772205043972,-500.0,0.00013698,2]
[406814218,1772205043981,-500.0,0.00013698,2]
[406814219,1772205043990,-500.0,0.00013698,2]
[406814220,1772205043999,-500.0,0.00013698,2]
[406814221,1772205044008,-500.0,0.00013698,2]
[406814222,1772205044017,-500.0,0.00013698,2]
[406814223,1772205044026,-500.0,0.00013698,2]
[406814224,1772205044035,-500.0,0.00013698,2]
[406814225,1772205044044,-500.0,0.00013698,2]
[406814226,1772205044054,-500.0,0.00013698,2]
[406814227,1772205044063,-583.33,0.00013698,2]
[406814228,1772205044072,-583.33,0.00013698,2]
[406814229,1772205044082,-583.33,0.00013698,2]
[406814230,1772205044091,-583.33,0.00013698,2]
[406814231,1772205044100,-583.33,0.00013698,2]
[406814232,1772205044110,-583.33,0.00013698,2]
[406814233,1772205044119,-500.0,0.00013698,2]
[406814234,1772205044128,-500.0,0.00013698,2]
[406814235,1772205044137,-583.33,0.00013698,2]
[406814236,1772205044146,-500.0,0.00013698,2]
[406814237,1772205044155,-583.33,0.00013698,2]
[406814238,1772205044165,-500.0,0.00013698,2]
[406814239,1772205044174,-583.33,0.00013698,2]
[406814240,1772205044184,-500.0,0.00013698,2]
[406814241,1772205044193,-278.70046284,0.00013698,2]
[406814242,1772205044202,-583.33,0.00013698,2]
[406814243,1772205044211,-583.33,0.00013698,2]
[406814244,1772205044220,-500.0,0.00013698,2]
[406814245,1772205044230,-500.0,0.00013698,2]
[406814246,1772205044239,-500.0,0.00013698,2]
[406814247,1772205044249,-500.0,0.00013698,2]
[406814248,1772205044259,-500.0,0.00013698,2]
[406814249,1772205044269,-500.0,0.00013698,2]
[406814250,1772205044278,-500.0,0.00013698,2]
[406814251,1772205044287,-500.0,0.00013698,2]
[406814252,1772205044297,-500.0,0.00013698,2]
[406814253,1772205044307,-500.0,0.00013698,2]
[406814254,1772205044316,-500.0,0.00013698,2]
[406814255,1772205044325,-500.0,0.00013698,2]
[406814256,1772205044334,-500.0,0.00013698,2]
[406814257,1772205044344,-500.0,0.00013698,2]
[406814258,1772205044353,-500.0,0.00013698,2]
[406814259,1772205044362,-500.0,0.00013698,2]
[406814260,1772205044371,-500.0,0.00013698,2]
[406814261,1772205044381,-500.0,0.00013698,2]
[406814262,1772205044390,-500.0,0.00013698,2]
[406814263,1772205044399,-500.0,0.00013698,2]
[406814264,1772205044409,-500.0,0.00013698,2]
[406814265,1772205044419,-500.0,0.00013698,2]
[406814266,1772205044428,-500.0,0.00013698,2]
[406814267,1772205044437,-500.0,0.00013698,2]
[406814268,1772205044446,-500.0,0.00013698,2]
[406814269,1772205044455,-500.0,0.00013698,2]
[406814270,1772205044464,-386.19326799,0.00013698,2]
[406814271,1772205044474,-500.0,0.00013698,2]
[406814272,1772205044484,-500.0,0.00013698,2]
[406814273,1772205044493,-500.0,0.00013698,2]
[406814274,1772205044503,-500.0,0.00013698,2]
[406814275,1772205044512,-500.0,0.00013698,2]
[406814276,1772205044522,-500.0,0.00013698,2]
[406814277,1772205044531,-500.0,0.00013698,2]
[406814278,1772205044541,-500.0,0.00013698,2]
[406814279,1772205044550,-500.0,0.00013698,2]
[406814280,1772205044559,-500.0,0.00013698,2]
[406814281,1772205044569,-500.0,0.00013698,2]
[406814282,1772205044578,-500.0,0.00013698,2]
[406814283,1772205044587,-500.0,0.00013698,2]
[406814284,1772205044596,-500.0,0.00013698,2]
[406814285,1772205044605,-413.53601113,0.00013698,2]
[406814286,1772205044614,-500.0,0.00013698,2]
[406814287,1772205044625,-500.0,0.00013698,2]
[406814288,1772205044634,-500.0,0.00013698,2]
[406814289,1772205044643,-500.0,0.00013698,2]
[406814290,1772205044652,-500.0,0.00013698,2]
[406814291,1772205044663,-500.0,0.00013698,2]
[406814292,1772205044673,-500.0,0.00013698,2]
[406814293,1772205044681,-500.0,0.00013698,2]
[406814294,1772205044690,-500.0,0.00013698,2]
[406814295,1772205044704,-500.0,0.00013698,2]
[406814296,1772205044715,-500.0,0.00013698,2]
[406814297,1772205044724,-500.0,0.00013698,2]
[406814298,1772205044733,-500.0,0.00013698,2]
[406814299,1772205044746,-500.0,0.00013698,2]
[406814300,1772205044757,-500.0,0.00013698,2]
[406814301,1772205044767,-500.0,0.00013698,2]
[406814302,1772205044776,-500.0,0.00013698,2]
[406814303,1772205044786,-500.0,0.00013698,2]
[406814304,1772205044795,-297.82549676,0.00013698,2]
[406814305,1772205044805,-200.0,0.00013699,2]
[406814306,1772205044815,-305.24,0.00013699,2]
[406814307,1772205044825,-288.22340618,0.00013699,2]
[406814308,1772205044834,-1500.0,0.00013715,2]
[406814309,1772205044843,-384.57830706,0.0001382,2]
[406814310,1772205044852,-39740.82213888,0.00013877,2]
[406814311,1772205044861,-1000.0,0.0001392,2]
[406814312,1772205044871,-2045.958033,0.00014289,7]
[406814313,1772205044880,-354.538124,0.00014289,7]
[406814314,1772205044889,-16822.52954853,0.000143,2]
[406814315,1772205044898,-305.24,0.00014384,2]
[406814316,1772205044908,-202.314467,0.00014422,7]
[406814317,1772205044916,-503.418309,0.00014422,7]
[406814318,1772205044926,-500.0,0.0001445,2]
[406814319,1772205044935,-500.0,0.0001445,2]
[406814320,1772205044944,-500.0,0.0001445,2]
[406814321,1772205044953,-500.0,0.0001445,2]
[406814322,1772205044962,-500.0,0.0001445,2]
[406814323,1772205044971,-500.0,0.0001445,2]
[406814324,1772205044980,-500.0,0.0001445,2]
[406814325,1772205044990,-563.9784206,0.0001445,2]
[406814326,1772205044999,-482.68275809,0.00014451,2]
[406814327,1772205045008,-482.68275809,0.00014451,2]
[406814328,1772205045017,-482.68275809,0.00014451,2]
[406814329,1772205045026,-482.68275809,0.00014451,2]
[406814330,1772205045035,-482.68275809,0.00014451,2]
[406814331,1772205045044,-482.68275809,0.00014451,2]
[406814332,1772205045053,-482.68275809,0.00014451,2]
[406814333,1772205045062,-482.68275809,0.00014451,2]
[406814334,1772205045071,-482.68275809,0.00014451,2]
[406814335,1772205045080,-482.68275809,0.00014451,2]
[406814336,1772205045090,-482.68275809,0.00014451,2]
[406814337,1772205045099,-482.68275809,0.00014451,2]
[406814338,1772205045108,-482.68275809,0.00014451,2]
[406814339,1772205045118,-482.68275809,0.00014451,2]